[Event "FIDE World School-ch O-13 2025"]
[Site "Vrnjacka Banja"]
[Date "2025.03.20"]
[Round "1.7"]
[White "Obidov, Biloliddin"]
[Black "Kanacki, Aljosa"]
[Result "1-0"]
[Annotator "NA RC"]
[ECO "E16"]
[WhiteElo "2020"]
[BlackElo "1647"]
[PlyCount "85"]
[EventDate "2025.03.19"]
[EventType "swiss"]
[EventCountry "SRB"]
[SourceTitle "playchess.com"]
[Source "ChessBase"]
[SourceQuality "1"]
[TimeControl "5400+30"]

1. d4 {[%emt 0:00:01]} Nf6 {[%emt 0:00:16]} 2. Nf3 {[%emt 0:01:00]} e6 {[%emt 0:00:35]} 3. c4 {[%emt 0:00:05]} b6 {[%emt 0:00:41]} 4. g3 {[%emt 0:00:14]} Bb7 {[%emt 0:00:35]} 5. Bg2 {[%emt 0:00:02]} c5 {[%emt 0:00:51]} 6. d5 {[%emt 0:08:27]} exd5 {[%emt 0:03:18]} 7. Nh4 {[%emt 0:01:58]} d6 {[%emt 0:02:15]} 8. Nc3 {[%emt 0:02:26]} Nbd7 {[%emt 0:01:01]} 9. Nxd5 {[%emt 0:03:40]} Nxd5 {[%emt 0:01:29]} 10. Bxd5 {[%emt 0:00:04]} Bxd5 {[%emt 0:01:26]} 11. Qxd5 {[%emt 0:00:02]} Rc8 {[%emt 0:08:02]} 12. O-O {[%emt 0:05:41]} Nf6 {[%emt 0:00:52]} 13. Qd3 {[%emt 0:04:00]} d5 {[%emt 0:02:34]} 14. Bg5 {[%emt 0:03:20]} dxc4 {[%emt 1:13:35]} 15. Qxc4 {[%emt 0:01:31]} Be7 {[%emt 0:00:00]} 16. Rad1 {[%emt 0:02:00]} Qc7 {[%emt 0:00:00]} 17. Nf5 {[%emt 0:00:13]} O-O {[%emt 0:00:00]} 18. Bf4 {[%emt 0:00:36]} Qb7 {[%emt 0:00:00]} 19. Nxe7+ {[%emt 0:00:20]} Qxe7 {[%emt 0:00:00]} 20. Bd6 {[%emt 0:00:20]} Qe6 {[%emt 0:00:00]} 21. Qxe6 {[%emt 0:00:06]} fxe6 {[%emt 0:00:00]} 22. Bxf8 {[%emt 0:00:08]} Kxf8 {[%emt 0:00:00]} 23. a3 {[%emt 0:02:05]} Ke7 {[%emt 0:00:00]} 24. f3 {[%emt 0:00:06]} Nd5 {[%emt 0:00:00]} 25. Kf2 {[%emt 0:00:04]} g5 {[%emt 0:00:00]} 26. e4 {[%emt 0:00:39]} Nc7 {[%emt 0:00:00]} 27. f4 {[%emt 0:01:33]} h6 {[%emt 0:00:00]} 28. f5 {[%emt 0:02:24]} Nb5 {[%emt 0:00:00]} 29. Ke3 {[%emt 0:00:09]} Nd4 {[%emt 0:00:00]} 30. f6+ {[%emt 0:01:59]} Kf7 {[%emt 0:00:00]} 31. e5 {[%emt 0:00:26]} Rc7 {[%emt 0:00:00]} 32. Rf2 {[%emt 0:00:24]} Rd7 {[%emt 0:00:00]} 33. Ke4 {[%emt 0:00:40]} Rc7 {[%emt 0:00:00]} 34. Rfd2 {[%emt 0:00:15]} Rd7 {[%emt 0:00:00]} 35. h4 {[%emt 0:01:26]} g4 {[%emt 0:00:00]} 36. h5 {[%emt 0:00:34]} Rd8 {[%emt 0:00:00]} 37. b4 {[%emt 0:04:35]} Rc8 {[%emt 0:00:00]} 38. Rd3 {[%emt 0:00:33]} Rc7 {[%emt 0:00:00]} 39. bxc5 {[%emt 0:01:20]} bxc5 {[%emt 0:00:00]} 40. Rc1 {[%emt 0:00:40]} Ne2 {[%emt 0:00:00]} 41. Rc2 {[%emt 0:00:09]} Ng1 {[%emt 0:00:00]} 42. Rdc3 {[%emt 0:00:22]} Nf3 {[%emt 0:00:00]} 43. Rxc5 {[%emt 0:00:15]} 1-0

[Event "FIDE World School-ch O-13 2025"]
[Site "Vrnjacka Banja"]
[Date "2025.03.20"]
[Round "1.8"]
[White "Osidiana Eli"]
[Black "Kudrin, Ivan"]
[Result "0-1"]
[Annotator "NA RC"]
[ECO "B54"]
[WhiteElo "1635"]
[BlackElo "1977"]
[PlyCount "104"]
[EventDate "2025.03.19"]
[EventType "swiss"]
[EventCountry "SRB"]
[SourceTitle "playchess.com"]
[Source "ChessBase"]
[SourceQuality "1"]
[TimeControl "5400+30"]

1. e4 {[%emt 0:00:03]} c5 {[%emt 0:00:04]} 2. Nf3 {[%emt 0:00:12]} e6 {[%emt 0:00:07]} 3. c4 {[%emt 0:00:16]} Nc6 {[%emt 0:02:14]} 4. Nc3 {[%emt 0:00:31]} Nf6 {[%emt 0:02:05]} 5. d4 {[%emt 0:05:27]} cxd4 {[%emt 0:00:07]} 6. Nxd4 {[%emt 0:00:31]} d6 {[%emt 0:08:57]} 7. Be2 {[%emt 0:04:23]} Be7 {[%emt 0:00:04]} 8. O-O {[%emt 0:01:40]} O-O {[%emt 0:00:42]} 9. Re1 {[%emt 0:04:38]} a6 {[%emt 0:01:18]} 10. Be3 {[%emt 0:05:20]} Qc7 {[%emt 0:01:14]} 11. Qc2 {[%emt 0:03:46]} Nxd4 {[%emt 0:02:13]} 12. Bxd4 {[%emt 0:00:23]} Bd7 {[%emt 0:01:08]} 13. Rac1 {[%emt 0:09:31]} Rac8 {[%emt 0:00:51]} 14. Bd3 {[%emt 0:07:10]} e5 {[%emt 0:06:16]} 15. Be3 {[%emt 0:01:06]} Qb8 {[%emt 0:01:53]} 16. Qb1 {[%emt 0:03:21]} b5 {[%emt 0:16:40]} 17. cxb5 {[%emt 0:02:28]} axb5 {[%emt 0:00:15]} 18. b4 {[%emt 0:01:16]} Bd8 {[%emt 0:03:47]} 19. h3 {[%emt 0:09:33]} h6 {[%emt 0:01:18]} 20. a3 {[%emt 0:01:28]} Bb6 {[%emt 0:04:37]} 21. Bxb6 {[%emt 0:00:18]} Qxb6 {[%emt 0:00:43]} 22. Qb2 {[%emt 0:01:44]} Qb7 {[%emt 0:06:35]} 23. Qe2 {[%emt 0:00:31]} Qa7 {[%emt 0:05:55]} 24. Qb2 {[%emt 0:01:36]} Qb6 {[%emt 0:01:28]} 25. Qe2 {[%emt 0:02:15]} Rb8 {[%emt 0:00:37]} 26. Qb2 {[%emt 0:04:34]} Rfc8 {[%emt 0:00:55]} 27. Qe2 {[%emt 0:01:02]} Rc7 {[%emt 0:01:29]} 28. Nd5 {[%emt 0:04:46]} Nxd5 {[%emt 0:00:09]} 29. exd5 {[%emt 0:00:12]} Rbc8 {[%emt 0:01:51]} 30. Rxc7 {[%emt 0:01:40]} Rxc7 {[%emt 0:00:13]} 31. Qe3 {[%emt 0:01:07]} Qxe3 {[%emt 0:02:56]} 32. Rxe3 {[%emt 0:00:14]} f5 {[%emt 0:00:05]} 33. Bf1 {[%emt 0:02:41]} f4 {[%emt 0:00:15]} 34. Rd3 {[%emt 0:01:20]} Rc1 {[%emt 0:02:15]} 35. f3 {[%emt 0:02:28]} g5 {[%emt 0:00:03]} 36. Kf2 {[%emt 0:01:03]} Kf7 {[%emt 0:00:27]} 37. Be2 {[%emt 0:00:43]} Kf6 {[%emt 0:03:32]} 38. Rd1 {[%emt 0:01:52]} Rc2 {[%emt 0:00:10]} 39. Ke1 {[%emt 0:02:17]} h5 {[%emt 0:01:19]} 40. Ra1 {[%emt 0:01:56]} g4 {[%emt 0:05:51]} 41. h4 {[%emt 0:01:29]} Bf5 {[%emt 0:06:14]} 42. Kf1 {[%emt 0:00:32]} e4 {[%emt 0:00:31]} 43. Bxb5 {[%emt 0:03:56]} gxf3 {[%emt 0:00:04]} 44. gxf3 {[%emt 0:00:22]} Bh3+ {[%emt 0:00:43]} 45. Kg1 {[%emt 0:00:41]} exf3 {[%emt 0:00:03]} 46. Bf1 {[%emt 0:01:01]} Bf5 {[%emt 0:00:14]} 47. a4 {[%emt 0:00:20]} Be4 {[%emt 0:00:13]} 48. a5 {[%emt 0:00:47]} Kf5 {[%emt 0:00:27]} 49. a6 {[%emt 0:00:10]} Kg4 {[%emt 0:00:10]} 50. a7 {[%emt 0:00:21]} Kg3 {[%emt 0:00:12]} 51. Bg2 {[%emt 0:02:50]} f2+ {[%emt 0:00:06]} 52. Kf1 {[%emt 0:01:22]} Bd3# {[%emt 0:00:36]} 0-1

[Event "FIDE World School-ch O-13 2025"]
[Site "Vrnjacka Banja"]
[Date "2025.03.25"]
[Round "6.1"]
[White "Kudrin, Ivan"]
[Black "Yurasov, Matfey"]
[Result "1/2-1/2"]
[Annotator "NA RC"]
[ECO "E85"]
[WhiteElo "1977"]
[BlackElo "2271"]
[PlyCount "69"]
[EventDate "2025.03.19"]
[EventType "swiss"]
[EventCountry "SRB"]
[SourceTitle "playchess.com"]
[Source "ChessBase"]
[SourceQuality "1"]
[TimeControl "5400+30"]

1. d4 {[%emt 0:00:02]} Nf6 {[%emt 0:00:06]} 2. c4 {[%emt 0:00:05]} d6 {[%emt 0:00:03]} 3. Nc3 {[%emt 0:00:12]} Nbd7 {[%emt 0:00:11]} 4. e4 {[%emt 0:01:00]} e5 {[%emt 0:00:11]} 5. Nf3 {[%emt 0:02:53]} exd4 {[%emt 0:06:45]} 6. Nxd4 {[%emt 0:00:43]} Nc5 {[%emt 0:00:11]} 7. f3 {[%emt 0:03:29]} Ne6 {[%emt 0:05:17]} 8. Be3 {[%emt 0:04:43]} g6 {[%emt 0:00:25]} 9. Be2 {[%emt 0:07:08]} Bg7 {[%emt 0:00:04]} 10. O-O {[%emt 0:06:12]} O-O {[%emt 0:04:41]} 11. Qd2 {[%emt 0:05:55]} Nxd4 {[%emt 0:03:06]} 12. Bxd4 {[%emt 0:00:27]} Be6 {[%emt 0:00:05]} 13. Rad1 {[%emt 0:05:42]} Nd7 {[%emt 0:09:07]} 14. Bxg7 {[%emt 0:09:49]} Kxg7 {[%emt 0:00:02]} 15. f4 {[%emt 0:00:09]} f6 {[%emt 0:00:50]} 16. b3 {[%emt 0:03:12]} a5 {[%emt 0:01:16]} 17. Kh1 {[%emt 0:03:22]} Qe7 {[%emt 0:11:08]} 18. Qd4 {[%emt 0:11:43]} Bf7 {[%emt 0:00:42]} 19. Na4 {[%emt 0:05:06]} b6 {[%emt 0:00:37]} 20. Bg4 {[%emt 0:04:35]} Nc5 {[%emt 0:02:04]} 21. Nxc5 {[%emt 0:01:03]} bxc5 {[%emt 0:01:28]} 22. Qc3 {[%emt 0:01:14]} Be6 {[%emt 0:05:30]} 23. Bf3 {[%emt 0:00:43]} c6 {[%emt 0:00:28]} 24. Rfe1 {[%emt 0:01:19]} Rad8 {[%emt 0:01:37]} 25. Qxa5 {[%emt 0:02:02]} g5 {[%emt 0:00:00]} 26. fxg5 {[%emt 0:20:42]} fxg5 27. Qc3+ {[%emt 0:00:00]} Kg8 {[%emt 0:00:05]} 28. Qe3 {[%emt 0:00:00]} g4 {[%emt 0:05:21]} 29. Be2 {[%emt 0:00:00]} Qg7 {[%emt 0:01:20]} 30. Rf1 {[%emt 0:00:00]} Qe5 {[%emt 0:00:46]} 31. Qh6 {[%emt 0:00:00]} Rde8 {[%emt 0:02:21]} 32. Bd3 {[%emt 0:00:00]} Rf7 {[%emt 0:01:16]} 33. Rxf7 {[%emt 0:00:00]} Bxf7 {[%emt 0:00:02]} 34. Rf1 {[%emt 0:00:00]} Bg6 {[%emt 0:00:06]} 35. Qf4 {[%emt 0:00:00]} 1/2-1/2

[Event "FIDE World School-ch O-13 2025"]
[Site "Vrnjacka Banja"]
[Date "2025.03.25"]
[Round "6.2"]
[White "Baturin-Vinogradov, Miroslav"]
[Black "Obidov, Biloliddin"]
[Result "0-1"]
[Annotator "NA RC"]
[ECO "E04"]
[WhiteElo "1912"]
[BlackElo "2020"]
[PlyCount "66"]
[EventDate "2025.03.19"]
[EventType "swiss"]
[EventCountry "SRB"]
[SourceTitle "playchess.com"]
[Source "ChessBase"]
[SourceQuality "1"]
[TimeControl "5400+30"]

1. d4 {[%emt 0:00:02]} Nf6 {[%emt 0:00:33]} 2. c4 {[%emt 0:00:08]} e6 {[%emt 0:00:06]} 3. Nf3 {[%emt 0:00:13]} d5 {[%emt 0:00:02]} 4. g3 {[%emt 0:00:17]} dxc4 {[%emt 0:00:06]} 5. Bg2 {[%emt 0:00:17]} a6 {[%emt 0:00:07]} 6. O-O {[%emt 0:00:47]} Nc6 {[%emt 0:00:04]} 7. Qd2 {[%emt 0:00:36]} Bd7 {[%emt 0:08:52]} 8. Rd1 {[%emt 0:04:16]} Rb8 {[%emt 0:10:48]} 9. Nc3 {[%emt 0:04:43]} Bb4 {[%emt 0:08:45]} 10. Qg5 {[%emt 0:04:02]} h6 {[%emt 0:03:03]} 11. Qf4 {[%emt 0:04:11]} O-O {[%emt 0:02:30]} 12. e4 {[%emt 0:02:01]} b5 {[%emt 0:03:42]} 13. e5 {[%emt 0:07:34]} Nd5 {[%emt 0:01:44]} 14. Qg4 {[%emt 0:02:54]} f5 {[%emt 0:07:06]} 15. exf6 {[%emt 0:00:12]} Nxf6 {[%emt 0:00:11]} 16. Qg6 {[%emt 0:01:12]} Be8 {[%emt 0:05:09]} 17. Qc2 {[%emt 0:00:06]} Bh5 {[%emt 0:02:24]} 18. Ne2 {[%emt 0:04:19]} Nd5 {[%emt 0:06:08]} 19. Qe4 {[%emt 0:02:49]} Qf6 {[%emt 0:04:14]} 20. Nf4 {[%emt 0:00:25]} Nxf4 {[%emt 0:00:56]} 21. Bxf4 {[%emt 0:04:01]} Ne7 {[%emt 0:05:51]} 22. Ne5 {[%emt 0:03:25]} Rbd8 {[%emt 0:02:27]} 23. Rdc1 {[%emt 0:06:11]} Bd2 {[%emt 0:01:43]} 24. Bxd2 {[%emt 0:21:18]} Qxf2+ {[%emt 0:00:04]} 25. Kh1 {[%emt 0:00:06]} Rxd4 {[%emt 0:05:07]} 26. Qb7 {[%emt 0:01:03]} Qxd2 {[%emt 0:03:34]} 27. Qxa6 {[%emt 0:04:42]} Nd5 {[%emt 0:07:44]} 28. Qxe6+ {[%emt 0:00:55]} Kh7 {[%emt 0:00:51]} 29. Nd7 {[%emt 0:14:06]} Rf2 {[%emt 0:03:18]} 30. Rf1 {[%emt 0:01:24]} Ne3 {[%emt 0:04:10]} 31. Be4+ {[%emt 0:02:12]} Kh8 {[%emt 0:02:36]} 32. Qc6 {[%emt 0:04:38]} Rxe4 {[%emt 0:00:59]} 33. Qxe4 {[%emt 0:01:15]} Bf3+ {[%emt 0:00:07]} 0-1

[Event "FIDE World School-ch O-13 2025"]
[Site "Vrnjacka Banja"]
[Date "2025.03.25"]
[Round "6.3"]
[White "Jayasooriya, Ruvin Sandharu"]
[Black "Samarth Sreeni Warrier"]
[Result "0-1"]
[Annotator "NA RC"]
[ECO "E08"]
[WhiteElo "1830"]
[BlackElo "1913"]
[PlyCount "104"]
[EventDate "2025.03.19"]
[EventType "swiss"]
[EventCountry "SRB"]
[SourceTitle "playchess.com"]
[Source "ChessBase"]
[SourceQuality "1"]
[TimeControl "5400+30"]

1. d4 {[%emt 0:00:19]} Nf6 {[%emt 0:00:08]} 2. c4 {[%emt 0:00:16]} e6 {[%emt 0:00:16]} 3. Nf3 {[%emt 0:00:15]} d5 {[%emt 0:00:07]} 4. g3 {[%emt 0:00:09]} Bb4+ {[%emt 0:00:07]} 5. Bd2 {[%emt 0:00:13]} Be7 {[%emt 0:00:12]} 6. Bg2 {[%emt 0:00:29]} O-O {[%emt 0:00:15]} 7. O-O {[%emt 0:00:38]} c6 {[%emt 0:00:02]} 8. Qc2 {[%emt 0:00:10]} Nbd7 {[%emt 0:00:02]} 9. Rd1 {[%emt 0:00:14]} b6 {[%emt 0:02:43]} 10. Bf4 {[%emt 0:00:17]} Bb7 {[%emt 0:03:28]} 11. Nc3 {[%emt 0:02:05]} dxc4 {[%emt 0:04:57]} 12. Ne5 {[%emt 0:02:52]} Nd5 {[%emt 0:10:45]} 13. Nxc4 {[%emt 0:02:34]} Nxf4 {[%emt 0:05:58]} 14. gxf4 {[%emt 0:00:05]} Nf6 {[%emt 0:03:16]} 15. e4 {[%emt 0:05:34]} Qc7 {[%emt 0:02:03]} 16. Qd2 {[%emt 0:02:37]} b5 {[%emt 0:03:56]} 17. Ne5 {[%emt 0:01:37]} Rfd8 {[%emt 0:00:18]} 18. Rac1 {[%emt 0:01:58]} Qb6 {[%emt 0:01:40]} 19. Ne2 {[%emt 0:06:00]} c5 {[%emt 0:02:57]} 20. Qe3 {[%emt 0:01:31]} cxd4 {[%emt 0:00:43]} 21. Rxd4 {[%emt 0:00:14]} Rxd4 {[%emt 0:05:37]} 22. Qxd4 {[%emt 0:00:12]} Qxd4 {[%emt 0:03:59]} 23. Nxd4 {[%emt 0:00:19]} Bxe4 {[%emt 0:00:08]} 24. Nxb5 {[%emt 0:03:33]} Bxg2 {[%emt 0:00:35]} 25. Kxg2 {[%emt 0:00:17]} Nd5 {[%emt 0:02:03]} 26. Kf3 {[%emt 0:02:01]} Bf6 {[%emt 0:08:45]} 27. Nxa7 {[%emt 0:04:31]} g5 {[%emt 0:02:35]} 28. Rc8+ {[%emt 0:01:27]} Rxc8 {[%emt 0:00:02]} 29. Nxc8 {[%emt 0:00:10]} Nxf4 {[%emt 0:01:36]} 30. Nc4 {[%emt 0:00:12]} Nd3 {[%emt 0:01:41]} 31. a4 {[%emt 0:01:10]} Kf8 {[%emt 0:01:41]} 32. a5 {[%emt 0:00:45]} Nb4 {[%emt 0:00:02]} 33. N8b6 {[%emt 0:02:39]} Ke7 {[%emt 0:02:08]} 34. Ke4 {[%emt 0:01:52]} Bg7 {[%emt 0:03:34]} 35. Ne5 {[%emt 0:02:33]} f5+ {[%emt 0:01:50]} 36. Kd4 {[%emt 0:00:04]} Bxe5+ {[%emt 0:01:14]} 37. Kc4 {[%emt 0:00:09]} Na6 {[%emt 0:01:18]} 38. b4 {[%emt 0:00:36]} Bxh2 {[%emt 0:07:01]} 39. b5 {[%emt 0:00:12]} Nc7 {[%emt 0:01:26]} 40. a6 {[%emt 0:04:19]} Bg1 {[%emt 0:00:42]} 41. Kc5 {[%emt 0:04:18]} Bxf2+ {[%emt 0:00:15]} 42. Kc6 {[%emt 0:00:09]} Kd8 {[%emt 0:00:01]} 43. a7 {[%emt 0:04:46]} g4 {[%emt 0:00:20]} 44. Kb7 {[%emt 0:01:09]} g3 {[%emt 0:00:56]} 45. Nc8 {[%emt 0:01:22]} Bxa7 {[%emt 0:01:32]} 46. Nxa7 {[%emt 0:00:14]} Nxb5 {[%emt 0:00:08]} 47. Nxb5 {[%emt 0:00:06]} g2 {[%emt 0:00:07]} 48. Nd4 {[%emt 0:01:21]} g1=Q {[%emt 0:00:04]} 49. Nxe6+ {[%emt 0:00:06]} Kd7 {[%emt 0:00:09]} 50. Nf8+ {[%emt 0:00:09]} Kd6 {[%emt 0:00:07]} 51. Nxh7 {[%emt 0:00:21]} Qb1+ {[%emt 0:00:10]} 52. Kc8 {[%emt 0:00:15]} Qb6 {[%emt 0:00:06]} 0-1

[Event "FIDE World School-ch O-13 2025"]
[Site "Vrnjacka Banja"]
[Date "2025.03.25"]
[Round "6.4"]
[White "Zharas, Aldiyar"]
[Black "Ilcic, Aleksa"]
[Result "1-0"]
[Annotator "NA RC"]
[ECO "B31"]
[WhiteElo "1924"]
[BlackElo "1822"]
[PlyCount "43"]
[EventDate "2025.03.19"]
[EventType "swiss"]
[EventCountry "SRB"]
[SourceTitle "playchess.com"]
[Source "ChessBase"]
[SourceQuality "1"]
[TimeControl "5400+30"]

1. e4 {[%emt 0:00:04]} c5 {[%emt 0:00:05]} 2. Nf3 {[%emt 0:00:08]} Nc6 {[%emt 0:00:05]} 3. Bb5 {[%emt 0:00:16]} g6 {[%emt 0:00:07]} 4. Bxc6 {[%emt 0:00:05]} dxc6 {[%emt 0:00:09]} 5. d3 {[%emt 0:00:06]} Bg7 {[%emt 0:00:07]} 6. a4 {[%emt 0:00:04]} a5 {[%emt 0:00:58]} 7. Qe2 {[%emt 0:08:14]} Bg4 {[%emt 0:03:58]} 8. Nbd2 {[%emt 0:02:19]} Nf6 {[%emt 0:00:31]} 9. h3 {[%emt 0:06:26]} Bxf3 {[%emt 0:01:14]} 10. Nxf3 {[%emt 0:00:11]} Nd7 {[%emt 0:00:58]} 11. e5 {[%emt 0:00:56]} e6 {[%emt 0:01:39]} 12. O-O {[%emt 0:01:03]} h6 {[%emt 0:03:15]} 13. Bf4 {[%emt 0:01:21]} Qe7 {[%emt 0:01:45]} 14. Nd2 {[%emt 0:01:12]} Nb6 {[%emt 0:00:57]} 15. Ne4 {[%emt 0:00:55]} O-O-O {[%emt 0:01:50]} 16. Nd6+ {[%emt 0:21:34]} Rxd6 {[%emt 0:00:26]} 17. exd6 {[%emt 0:00:07]} Qf6 {[%emt 0:00:10]} 18. Bd2 {[%emt 0:01:34]} Nd5 {[%emt 0:03:14]} 19. c4 {[%emt 0:03:49]} Nb4 {[%emt 0:00:32]} 20. Bc3 {[%emt 0:00:23]} e5 {[%emt 0:00:06]} 21. Qg4+ {[%emt 0:00:58]} Kd8 {[%emt 0:01:11]} 22. f4 {[%emt 0:00:55]} 1-0

[Event "FIDE World School-ch O-13 2025"]
[Site "Vrnjacka Banja"]
[Date "2025.03.25"]
[Round "6.5"]
[White "Rusu, Lucas"]
[Black "Haresh, Venkata Narayanaswam"]
[Result "1/2-1/2"]
[Annotator "NA RC"]
[ECO "B92"]
[WhiteElo "2049"]
[BlackElo "1824"]
[PlyCount "63"]
[EventDate "2025.03.19"]
[EventType "swiss"]
[EventCountry "SRB"]
[SourceTitle "playchess.com"]
[Source "ChessBase"]
[SourceQuality "1"]
[TimeControl "5400+30"]

1. e4 {[%emt 0:00:02]} c5 {[%emt 0:00:09]} 2. Nf3 {[%emt 0:00:06]} d6 {[%emt 0:00:03]} 3. d4 {[%emt 0:00:08]} cxd4 {[%emt 0:00:07]} 4. Nxd4 {[%emt 0:00:04]} Nf6 {[%emt 0:00:11]} 5. Nc3 {[%emt 0:00:04]} a6 {[%emt 0:00:09]} 6. Be2 {[%emt 0:02:39]} e5 {[%emt 0:00:16]} 7. Nb3 {[%emt 0:00:57]} Be7 {[%emt 0:00:21]} 8. O-O {[%emt 0:00:47]} Be6 {[%emt 0:00:53]} 9. Kh1 {[%emt 0:02:19]} b5 {[%emt 0:01:51]} 10. a3 {[%emt 0:13:47]} Nbd7 {[%emt 0:00:43]} 11. f4 {[%emt 0:00:46]} Rc8 {[%emt 0:02:42]} 12. Be3 {[%emt 0:05:00]} O-O {[%emt 0:02:15]} 13. Nd2 {[%emt 0:11:20]} Nb6 {[%emt 0:10:58]} 14. f5 {[%emt 0:09:05]} Nc4 {[%emt 1:16:52]} 15. Bxc4 {[%emt 0:02:25]} Bxc4 {[%emt 0:00:00]} 16. Nxc4 {[%emt 0:04:36]} Rxc4 {[%emt 0:00:00]} 17. Qd3 {[%emt 0:00:20]} d5 {[%emt 0:00:00]} 18. Nxd5 {[%emt 0:19:04]} Nxd5 {[%emt 0:00:00]} 19. exd5 {[%emt 0:00:08]} e4 {[%emt 0:00:00]} 20. Qd2 {[%emt 0:00:34]} Bf6 {[%emt 0:00:00]} 21. c3 {[%emt 0:00:26]} Qd6 {[%emt 0:00:00]} 22. Rad1 {[%emt 0:02:41]} Rd8 {[%emt 0:00:00]} 23. Qe2 {[%emt 0:08:47]} h6 {[%emt 0:00:00]} 24. Qg4 {[%emt 0:01:03]} Qe5 {[%emt 0:00:00]} 25. Bd4 {[%emt 0:03:46]} Qd6 {[%emt 0:02:37]} 26. Be3 {[%emt 0:00:27]} Qe5 {[%emt 0:00:14]} 27. Bd4 {[%emt 0:07:49]} Qd6 {[%emt 0:00:01]} 28. Qxe4 {[%emt 0:03:00]} Bxd4 {[%emt 0:00:56]} 29. Rxd4 {[%emt 0:00:56]} Rxd4 {[%emt 0:00:01]} 30. Qxd4 {[%emt 0:01:24]} Qxd5 {[%emt 0:00:04]} 31. Qf4 {[%emt 0:00:34]} Qd2 {[%emt 0:00:35]} 32. Qf3 {[%emt 0:00:54]} 1/2-1/2

[Event "FIDE World School-ch O-13 2025"]
[Site "Vrnjacka Banja"]
[Date "2025.03.25"]
[Round "6.6"]
[White "Ritesh Maddukuri"]
[Black "Yang, Maxwell"]
[Result "1/2-1/2"]
[Annotator "NA RC"]
[ECO "E72"]
[WhiteElo "1773"]
[BlackElo "1970"]
[PlyCount "80"]
[EventDate "2025.03.19"]
[EventType "swiss"]
[EventCountry "SRB"]
[SourceTitle "playchess.com"]
[Source "ChessBase"]
[SourceQuality "1"]
[TimeControl "5400+30"]

1. d4 {[%emt 0:00:14]} Nf6 {[%emt 0:01:43]} 2. c4 {[%emt 0:00:08]} g6 {[%emt 0:00:06]} 3. g3 {[%emt 0:00:06]} Bg7 {[%emt 0:00:20]} 4. Bg2 {[%emt 0:00:07]} O-O {[%emt 0:00:05]} 5. e4 {[%emt 0:00:07]} d6 {[%emt 0:01:36]} 6. Ne2 {[%emt 0:00:17]} e5 {[%emt 0:00:40]} 7. d5 {[%emt 0:00:31]} a5 {[%emt 0:01:05]} 8. O-O {[%emt 0:00:20]} Na6 {[%emt 0:00:15]} 9. Nbc3 {[%emt 0:00:08]} Nc5 {[%emt 0:00:14]} 10. h3 {[%emt 0:00:17]} Ne8 {[%emt 0:08:40]} 11. Be3 {[%emt 0:00:54]} b6 {[%emt 0:01:57]} 12. g4 {[%emt 0:21:02]} Bd7 {[%emt 0:08:56]} 13. Ng3 {[%emt 0:03:24]} Qc8 {[%emt 0:02:47]} 14. Qc2 {[%emt 0:02:08]} f5 {[%emt 0:04:35]} 15. exf5 {[%emt 0:00:20]} gxf5 {[%emt 0:00:08]} 16. gxf5 {[%emt 0:00:05]} Bxf5 {[%emt 0:00:07]} 17. Nxf5 {[%emt 0:00:06]} Qxf5 {[%emt 0:00:06]} 18. Qxf5 {[%emt 0:00:08]} Rxf5 {[%emt 0:00:05]} 19. Bxc5 {[%emt 0:01:19]} bxc5 {[%emt 0:02:08]} 20. Be4 {[%emt 0:02:00]} Rf7 {[%emt 0:01:12]} 21. Rad1 {[%emt 0:01:22]} Bh6 {[%emt 0:00:40]} 22. Kh1 {[%emt 0:03:22]} Bf4 {[%emt 0:01:14]} 23. Rg1+ {[%emt 0:03:16]} Kh8 {[%emt 0:02:57]} 24. Rd3 {[%emt 0:05:17]} Ng7 {[%emt 0:09:03]} 25. Rg4 {[%emt 0:02:14]} Rg8 {[%emt 0:02:13]} 26. Rd1 {[%emt 0:01:58]} Nh5 {[%emt 0:03:00]} 27. Rdg1 {[%emt 0:04:42]} Rxg4 {[%emt 0:03:23]} 28. hxg4 {[%emt 0:00:32]} Nf6 {[%emt 0:01:59]} 29. Bf5 {[%emt 0:13:07]} Rg7 {[%emt 0:03:37]} 30. Ne4 {[%emt 0:02:03]} Nxe4 {[%emt 0:04:39]} 31. Bxe4 {[%emt 0:00:26]} h6 {[%emt 0:00:07]} 32. f3 {[%emt 0:00:38]} Rg8 {[%emt 0:00:07]} 33. b3 {[%emt 0:00:20]} Rb8 {[%emt 0:00:09]} 34. Rb1 {[%emt 0:00:09]} Kg7 {[%emt 0:00:10]} 35. Kg2 {[%emt 0:00:16]} Kf6 {[%emt 0:00:03]} 36. Bd3 {[%emt 0:00:33]} Rg8 {[%emt 0:01:38]} 37. Rh1 {[%emt 0:00:19]} Ra8 {[%emt 0:00:18]} 38. a4 {[%emt 0:00:06]} Bg5 {[%emt 0:00:25]} 39. Kf2 {[%emt 0:00:24]} Rb8 {[%emt 0:00:07]} 40. Bc2 {[%emt 0:00:04]} Bf4 {[%emt 0:00:20]} 1/2-1/2